bitfinex-derivatives/quotes_BTCF0:USTF0_20240815
["timestamp","ask_amount","ask_price","bid_price","bid_amount"]
[1723739448497,0.00025072,59822.0,59820.0,0.1733]
[1723739448690,0.00025072,59822.0,59821.0,0.496471]
[1723739448888,0.00025072,59822.0,59821.0,1.081522]
[1723739448889,0.08335619,59822.0,59821.0,1.081522]
[1723739449103,0.08335619,59822.0,59821.0,1.481522]
[1723739449288,0.00025072,59822.0,59821.0,1.481522]
[1723739449696,0.3608,59838.0,59837.0,0.083548]
[1723739449998,0.3608,59842.0,59832.0,0.1733]
[1723739449999,0.51082353,59842.0,59832.0,0.1733]
[1723739450306,0.444341,59842.0,59833.0,0.1012]
[1723739450502,0.444341,59842.0,59841.0,0.083543]
[1723739451100,0.3608,59842.0,59841.0,0.083543]
[1723739451499,0.06673325,59847.0,59846.0,0.083536]
[1723739451500,0.42753325,59847.0,59846.0,0.083536]
[1723739451699,0.00025072,59847.0,59846.0,0.167072]
[1723739451892,0.00025072,59847.0,59846.0,0.133236]
[1723739452807,0.083517,59859.0,59856.0,0.083521]
[1723739453599,0.3608,59860.0,59854.0,0.3608]
[1723739453803,0.083526,59853.0,59849.0,0.08353]
[1723739454002,0.012,59847.0,59846.0,0.134236]
[1723739454697,0.083522,59857.0,59846.0,0.0497]
[1723739454898,0.083522,59857.0,59856.0,0.001]
[1723739455402,0.012,59859.0,59856.0,0.001]
[1723739455802,0.012,59859.0,59858.0,0.444319]
[1723739455998,0.012,59859.0,59858.0,0.945519]
[1723739456308,0.012,59859.0,59858.0,0.497619]
[1723739457299,0.11690171,59862.0,59861.0,0.083515]
[1723739457604,0.14915442,59862.0,59861.0,0.083515]
[1723739458101,0.07314035,59862.0,59861.0,0.083515]
[1723739458306,0.03225271,59862.0,59861.0,0.083515]
[1723739458500,0.04325271,59862.0,59861.0,0.084515]
[1723739458694,0.1271123,59862.0,59861.0,0.084515]
[1723739458900,0.04325271,59862.0,59861.0,0.084515]
[1723739459100,0.011,59862.0,59861.0,0.084515]
[1723739459505,0.05188747,59862.0,59861.0,0.084515]
[1723739459694,0.08414018,59862.0,59861.0,0.084515]
[1723739459898,0.14368435,59862.0,59861.0,0.084515]
[1723739460403,0.21682453,59862.0,59861.0,0.084515]
[1723739460603,0.08414018,59862.0,59861.0,0.084515]
[1723739460798,0.08414018,59862.0,59861.0,0.085515]
[1723739460799,0.09614018,59862.0,59861.0,0.085515]
[1723739461403,0.13907902,59862.0,59861.0,0.085515]
[1723739461599,0.00025072,59863.0,59861.0,0.085515]
[1723739461904,0.00088,59872.0,59864.0,0.33638098]
[1723739462097,0.09947975,59872.0,59871.0,0.1733]
[1723739462399,0.3608,59885.0,59871.0,0.1733]
[1723739462400,0.47687133,59885.0,59871.0,0.1733]
[1723739462604,0.3608,59885.0,59873.0,0.3608]
[1723739462801,0.09942757,59874.0,59873.0,0.444298]
[1723739463008,0.09942699,59874.0,59873.0,0.5341]
[1723739463316,0.09942699,59875.0,59873.0,1.43514]
[1723739463608,0.00025072,59884.0,59877.0,0.083492]
[1723739463609,0.11607133,59878.0,59877.0,0.083492]
[1723739464004,0.11607133,59878.0,59877.0,0.584532]
[1723739464205,0.11607133,59878.0,59872.0,0.00025072]
[1723739464206,0.51607133,59878.0,59855.0,0.3608]
[1723739464505,0.51607133,59878.0,59822.0,0.06627494]
[1723739464506,0.3608,59857.0,59852.0,0.083527]
[1723739464707,0.3608,59857.0,59840.0,0.3608]
[1723739464708,0.58406882,59856.0,59840.0,0.3608]
[1723739464900,0.21531282,59847.0,59846.0,0.083535]
[1723739465099,0.21531282,59847.0,59840.0,0.3608]
[1723739465100,0.36729853,59847.0,59840.0,0.444344]
[1723739465303,0.3608,59841.0,59840.0,0.083544]
[1723739465504,0.51278571,59841.0,59840.0,0.083544]
[1723739465711,0.15198571,59841.0,59840.0,0.083544]
[1723739466512,0.12852771,59841.0,59840.0,0.984864]
[1723739466702,0.12852771,59841.0,59840.0,0.584864]
[1723739466897,0.12852771,59841.0,59840.0,0.593864]
[1723739467108,0.05987055,59841.0,59840.0,0.593864]
[1723739467304,0.3608,59845.0,59841.0,0.083542]
[1723739467808,0.3608,59845.0,59840.0,0.014]
[1723739468310,0.3608,59845.0,59844.0,0.083538]
[1723739469607,0.3608,59845.0,59838.0,0.17355051]
[1723739469608,0.54050167,59845.0,59838.0,0.15008331]
[1723739469807,0.17970167,59844.0,59843.0,0.083539]
[1723739470023,0.17970167,59844.0,59767.0,0.34778803]
[1723739470024,0.12843855,59844.0,59822.0,0.3608]
[1723739470205,0.083564,59827.0,59822.0,0.083569]
[1723739470405,0.3608,59823.0,59822.0,0.05788211]
[1723739470614,0.47196703,59823.0,59822.0,0.05788211]
[1723739471120,0.41206647,59823.0,59822.0,0.05788211]
[1723739471319,0.41206647,59823.0,59817.0,0.083576]
[1723739471612,0.3608,59818.0,59817.0,0.083576]
[1723739471808,0.41206647,59818.0,59817.0,0.08382673]
[1723739472013,0.594383,59818.0,59817.0,0.08382673]
[1723739472402,0.54311653,59818.0,59817.0,0.08382673]
[1723739472716,0.3608,59818.0,59817.0,0.58534673]
[1723739473403,0.3608,59818.0,59817.0,0.08382673]
[1723739473918,0.3618,59818.0,59817.0,0.08882673]
[1723739474209,0.3628,59818.0,59817.0,0.09882673]
[1723739474915,0.3618,59818.0,59817.0,0.08882673]
[1723739475111,0.3628,59818.0,59817.0,0.09282673]
[1723739475313,0.3628,59818.0,59817.0,0.59434673]
[1723739475808,0.3628,59818.0,59817.0,0.99434673]
[1723739476008,0.002,59818.0,59817.0,0.99434673]
[1723739476315,0.3608,59823.0,59822.0,0.083569]
[1723739476817,0.00025073,59828.0,59827.0,0.083562]
[1723739477207,0.00025073,59828.0,59827.0,0.985002]
[1723739477405,0.36052073,59832.0,59831.0,0.083557]
[1723739478414,0.36052073,59832.0,59831.0,0.584957]
[1723739480014,0.36052073,59832.0,59831.0,0.984957]
[1723739480216,0.36152073,59832.0,59831.0,0.996957]
[1723739480719,0.36152073,59832.0,59831.0,1.003957]
[1723739480720,0.35527022,59832.0,59831.0,1.003957]
[1723739481022,0.35527022,59832.0,59831.0,1.002957]
[1723739481726,0.35327022,59832.0,59831.0,0.984957]
[1723739482023,0.35527022,59832.0,59831.0,0.61215796]
[1723739482225,0.35527022,59832.0,59817.0,0.00025073]
[1723739482226,0.72607022,59832.0,59817.0,0.00025073]
[1723739482415,0.3608,59821.0,59817.0,0.00025073]
[1723739482809,0.3608,59821.0,59820.0,0.083572]
[1723739484421,0.083575,59818.0,59817.0,0.00625073]
[1723739484629,0.72348,59821.0,59820.0,0.083572]
[1723739484926,0.7226,59821.0,59820.0,0.086572]
[1723739485128,0.7216,59821.0,59820.0,0.003]
[1723739485325,0.805171,59821.0,59820.0,0.003]
[1723739485720,0.001,59818.0,59817.0,0.08382673]
[1723739486418,0.001,59818.0,59817.0,0.98534673]
[1723739487420,0.3608,59822.0,59821.0,0.083571]
[1723739487820,0.3608,59822.0,59821.0,0.985051]
[1723739488522,0.3608,59822.0,59821.0,0.585051]
[1723739488724,0.3608,59822.0,59817.0,0.08982573]
[1723739488725,0.083575,59818.0,59817.0,0.00625073]
[1723739488928,0.16715,59818.0,59817.0,0.00625073]
[1723739489119,0.083587,59810.0,59805.0,0.083593]
[1723739489320,0.3608,59807.0,59806.0,0.083592]
[1723739489519,0.444391,59807.0,59804.0,0.00014033]
[1723739490030,0.3608,59807.0,59806.0,0.083592]
[1723739490823,0.3608,59807.0,59804.0,0.00014033]
[1723739491020,0.083593,59805.0,59804.0,0.00014033]
[1723739491728,0.3618,59807.0,59800.0,0.00025073]
[1723739492027,0.3608,59801.0,59774.0,0.06578134]
[1723739492218,0.3608,59801.0,59773.0,0.1027]
[1723739492219,0.3608,59787.0,59773.0,0.1027]
[1723739492418,0.08362,59786.0,59773.0,0.05797701]
[1723739492629,0.08379057,59785.0,59773.0,0.05797701]
[1723739492818,0.083623,59784.0,59773.0,0.05797701]
[1723739493326,0.083623,59784.0,59780.0,0.083627]
[1723739493526,0.3608,59781.0,59780.0,0.083627]
[1723739495530,0.3618,59781.0,59780.0,0.083627]
[1723739495823,0.3628,59781.0,59780.0,0.083627]
[1723739496733,0.3628,59781.0,59773.0,0.00025073]
[1723739496918,0.3608,59774.0,59773.0,0.00025073]
[1723739497118,0.40260241,59774.0,59773.0,0.00025073]
[1723739498018,0.08364,59772.0,59758.0,0.00490361]
[1723739498223,0.31913598,59774.0,59756.0,0.047]
[1723739498224,0.3608,59766.0,59765.0,0.083649]
[1723739498426,0.36093152,59766.0,59765.0,0.083649]
[1723739500032,0.36193152,59766.0,59765.0,0.083649]
[1723739500239,0.36293152,59766.0,59765.0,0.083649]
[1723739500427,0.44658052,59766.0,59760.0,0.00025095]
[1723739500620,0.44658052,59766.0,59763.0,0.08365]
[1723739500832,0.44658052,59766.0,59764.0,0.08365]
[1723739501026,0.44658052,59766.0,59760.0,0.00025095]
[1723739501027,0.083649,59765.0,59760.0,0.00025095]
[1723739501222,0.3608,59761.0,59760.0,0.08390695]
[1723739502426,0.3608,59761.0,59745.0,0.4094]
[1723739502427,1.26296081,59761.0,59744.0,0.00016002]
[1723739502629,0.3608,59745.0,59744.0,0.08383802]
[1723739502829,0.00016957,59745.0,59744.0,0.08383802]
[1723739503427,0.00016957,59745.0,59744.0,0.59098487]
[1723739503629,0.00016957,59745.0,59744.0,0.99098487]
[1723739504232,0.00016957,59745.0,59744.0,0.08886487]
[1723739504431,0.00116957,59745.0,59744.0,0.08886487]
[1723739504827,0.00216957,59745.0,59744.0,0.08886487]
[1723739506536,0.00025095,59750.0,59749.0,0.083671]
[1723739507731,0.00125095,59750.0,59749.0,0.083671]
[1723739508141,0.083676,59746.0,59744.0,0.00518687]
[1723739508444,0.444475,59746.0,59744.0,0.00016002]
[1723739508643,0.3608,59746.0,59745.0,0.083677]
[1723739509146,0.083677,59745.0,59744.0,0.00016002]
[1723739509928,0.3608,59746.0,59745.0,0.083677]
[1723739510128,0.3628,59746.0,59745.0,0.085677]
[1723739510433,0.00025095,59750.0,59745.0,0.671474]
[1723739510643,0.00025095,59750.0,59745.0,0.085677]
[1723739510839,0.3608,59760.0,59749.0,0.300371]
[1723739511142,0.3608,59760.0,59759.0,0.083657]
[1723739512629,0.3618,59760.0,59759.0,0.084657]
[1723739513034,0.3628,59760.0,59759.0,0.084657]
[1723739513537,0.002,59760.0,59759.0,0.084657]
[1723739513935,0.002,59760.0,59759.0,0.086657]
[1723739514136,0.00025095,59765.0,59764.0,0.08365]
[1723739515931,0.00125095,59765.0,59764.0,0.08565]
[1723739517145,0.00225095,59765.0,59764.0,0.08865]
[1723739520042,0.3608,59777.0,59776.0,0.083633]
[1723739520244,0.3608,59784.0,59771.0,0.08364]
[1723739520549,0.3608,59784.0,59783.0,0.083623]
[1723739522245,0.3608,59784.0,59778.0,0.00025095]
[1723739522559,0.3608,59779.0,59778.0,0.08388095]
[1723739523635,0.444429,59779.0,59778.0,0.00025095]
[1723739523842,0.083637,59774.0,59772.0,0.083638]
[1723739524139,0.083637,59774.0,59762.0,0.59512]
[1723739524140,0.3608,59773.0,59762.0,0.59512]
[1723739524336,0.083644,59769.0,59768.0,0.083642]
[1723739524640,0.444438,59773.0,59762.0,0.60018484]
[1723739524950,0.083639,59772.0,59762.0,0.66596618]
[1723739525250,0.44468895,59773.0,59772.0,0.083639]
[1723739525544,0.36105095,59773.0,59772.0,0.083639]
[1723739525936,0.00025095,59773.0,59772.0,0.167278]
[1723739526448,0.00025095,59773.0,59772.0,0.083639]
[1723739526449,0.36205095,59773.0,59772.0,0.083639]
[1723739526942,0.36405095,59773.0,59772.0,0.083639]
[1723739527142,0.45768795,59773.0,59772.0,0.083639]
[1723739527439,0.44768795,59773.0,59772.0,0.01]
[1723739527744,0.55132495,59773.0,59772.0,0.01]
[1723739528053,0.53132495,59773.0,59772.0,0.01]
[1723739528250,0.60132495,59773.0,59772.0,0.01]
[1723739528448,0.59932495,59773.0,59772.0,0.01]
[1723739528658,0.083651,59763.0,59762.0,0.00025095]
[1723739529153,0.083651,59763.0,59755.0,0.06578134]
[1723739529154,0.083661,59756.0,59755.0,0.06578134]
[1723739529340,0.083661,59756.0,59750.0,0.08367]
[1723739529341,0.444462,59756.0,59750.0,0.00493338]
[1723739529545,0.3608,59763.0,59749.0,0.00053]
[1723739529847,0.083659,59758.0,59751.0,0.3608]
[1723739530067,0.3608,59763.0,59757.0,0.08366]
[1723739530254,0.3608,59763.0,59759.0,0.083656]
[1723739530548,0.00025095,59760.0,59759.0,0.083656]
[1723739530953,0.08390695,59760.0,59759.0,0.083656]
[1723739531342,0.08390695,59760.0,59755.0,0.083662]
[1723739531343,0.00025095,59760.0,59755.0,0.083662]
[1723739531541,0.001,59756.0,59751.0,0.083668]
[1723739531748,0.083666,59753.0,59752.0,0.083667]
[1723739531947,0.001,59756.0,59750.0,0.015086]
[1723739532151,0.083664,59754.0,59753.0,0.083664]
[1723739532340,0.3608,59757.0,59749.0,0.01153]
[1723739532550,0.08367,59750.0,59749.0,0.00053]
[1723739533254,0.3608,59751.0,59750.0,0.08367]
[1723739534556,0.3608,59751.0,59749.0,0.01053]
[1723739534754,0.08367,59750.0,59749.0,0.01053]
[1723739535051,0.08367,59750.0,59749.0,0.00053]
[1723739535954,0.08467,59750.0,59749.0,0.01053]
[1723739536153,0.08467,59750.0,59749.0,0.094201]
[1723739536653,0.001,59750.0,59749.0,0.094201]
[1723739537450,0.002,59750.0,59749.0,0.096201]
[1723739537853,0.3608,59764.0,59749.0,0.91461]
[1723739538056,0.36172,59764.0,59759.0,0.167314]
[1723739538259,0.3608,59771.0,59759.0,0.669314]
[1723739538260,0.3608,59766.0,59759.0,0.669314]
[1723739538466,0.444441,59771.0,59770.0,0.083642]
[1723739538759,0.44444,59771.0,59770.0,0.083642]
[1723739539356,0.3608,59771.0,59770.0,0.083642]
[1723739539953,0.3698,59771.0,59770.0,0.083642]
[1723739540257,0.45344,59771.0,59770.0,0.083642]
[1723739541161,0.46244,59771.0,59770.0,0.084642]
[1723739542454,0.018,59771.0,59770.0,0.084642]
[1723739542655,0.3788,59771.0,59770.0,0.084642]
[1723739542851,0.3788,59771.0,59770.0,1.070204]
[1723739542852,0.018,59771.0,59770.0,1.070204]
[1723739543058,0.00025095,59776.0,59775.0,0.16727]
[1723739543463,0.3608,59786.0,59785.0,0.083621]
[1723739544964,0.3608,59786.0,59785.0,0.084621]
[1723739544965,0.3748,59786.0,59785.0,0.084621]
[1723739545459,0.014,59786.0,59785.0,0.168242]
[1723739545656,0.00025095,59791.0,59790.0,0.083614]
[1723739546160,0.00025095,59791.0,59790.0,0.167228]
[1723739546357,0.083591,59806.0,59790.0,0.985374]
[1723739546562,0.083591,59806.0,59805.0,0.083592]
[1723739546764,0.3608,59807.0,59806.0,0.083591]
[1723739547266,0.3608,59814.0,59813.0,0.083582]
[1723739547965,0.44438,59814.0,59813.0,0.083582]
[1723739548368,0.3608,59814.0,59813.0,0.083582]
[1723739549668,0.3658,59814.0,59813.0,0.083582]
[1723739550373,0.3658,59814.0,59804.0,0.0476]
[1723739550672,0.3658,59814.0,59813.0,0.083582]
[1723739550865,0.44938,59814.0,59813.0,0.083582]
[1723739551574,0.3658,59814.0,59809.0,0.083587]
[1723739551871,0.083586,59810.0,59809.0,0.083587]
[1723739552473,0.08359,59808.0,59804.0,0.005]
[1723739552669,0.3608,59814.0,59806.0,0.08359]
[1723739552670,0.08359,59807.0,59806.0,0.08359]
[1723739552862,0.083584,59811.0,59810.0,0.083586]
[1723739553063,0.3608,59814.0,59813.0,0.083582]
[1723739554572,0.45301919,59814.0,59813.0,0.083582]
[1723739554973,0.53659919,59814.0,59813.0,0.083582]
[1723739555178,0.53660172,59814.0,59813.0,0.083582]
[1723739555473,0.45302172,59814.0,59801.0,0.36605508]
[1723739555674,0.45302172,59814.0,59810.0,0.083584]
[1723739555675,0.083585,59811.0,59810.0,0.083584]
[1723739555875,0.12451,59811.0,59810.0,0.083584]
[1723739556574,0.34102099,59811.0,59810.0,0.07522561]
[1723739556770,0.20613927,59811.0,59810.0,0.07522561]
[1723739557474,0.042925,59811.0,59810.0,0.07522561]
[1723739557678,0.09422172,59811.0,59810.0,0.07522561]
[1723739557979,0.042925,59811.0,59810.0,0.07522561]
[1723739558272,0.083589,59808.0,59801.0,0.00025095]
[1723739558481,0.083597,59802.0,59801.0,0.00025095]
[1723739558774,0.167196,59801.0,59800.0,0.00084]
[1723739558963,0.083605,59797.0,59795.0,0.083607]
[1723739559169,0.23576557,59796.0,59795.0,0.083607]
[1723739559887,0.15216057,59796.0,59795.0,0.083607]
[1723739560478,0.09322172,59796.0,59795.0,0.694934]
[1723739561676,0.09322172,59796.0,59795.0,0.687934]
[1723739561974,0.03770395,59796.0,59795.0,1.087934]
[1723739562177,0.001,59796.0,59795.0,1.081934]
[1723739562472,0.001,59796.0,59795.0,1.0875553]
[1723739562679,0.00025095,59801.0,59795.0,1.0039483]
[1723739562876,0.00025095,59801.0,59800.0,0.7447]
[1723739563074,0.00025095,59801.0,59800.0,1.24638]
[1723739563379,0.00025095,59801.0,59800.0,1.64638]
[1723739563881,0.083581,59814.0,59806.0,0.00027905]
[1723739564069,0.083581,59814.0,59807.0,0.3608]
[1723739564270,0.083581,59814.0,59813.0,0.083582]
[1723739565084,0.083576,59818.0,59815.0,0.083578]
[1723739565280,0.444376,59817.0,59815.0,0.083578]
[1723739565479,0.083581,59814.0,59808.0,0.00025095]
[1723739565773,0.083581,59814.0,59812.0,0.083582]
[1723739566082,0.3608,59817.0,59808.0,0.00025095]
[1723739566083,0.7216,59817.0,59808.0,0.00025095]
[1723739566383,0.3608,59810.0,59808.0,0.00025095]
[1723739566866,0.3608,59810.0,59808.0,0.00125095]
[1723739567182,0.3608,59810.0,59809.0,0.083587]
[1723739569177,0.3618,59810.0,59809.0,0.083587]
[1723739569880,0.001,59810.0,59809.0,0.083587]
[1723739572493,0.001,59810.0,59809.0,0.13288197]
[1723739572785,0.001,59810.0,59809.0,0.083587]
[1723739574085,0.083587,59809.0,59808.0,0.00025095]
[1723739574273,0.245874,59809.0,59808.0,0.00025095]
[1723739574475,0.208587,59809.0,59808.0,0.00025095]
[1723739575388,0.178587,59809.0,59808.0,0.00025095]
[1723739575584,0.178587,59809.0,59808.0,0.0499519]
[1723739575778,0.198587,59809.0,59808.0,0.0499519]
[1723739575980,1.0166,59809.0,59806.0,1e-08]
[1723739576274,0.083601,59799.0,59798.0,0.04970095]
[1723739576484,0.083601,59799.0,59797.0,0.13330495]
[1723739576485,0.083602,59798.0,59797.0,0.13330495]
[1723739576788,0.083602,59798.0,59797.0,0.083604]
[1723739577178,0.093602,59798.0,59797.0,0.04981393]
[1723739577382,0.093602,59798.0,59793.0,0.0662577]
[1723739577383,0.01,59798.0,59793.0,0.04981393]
[1723739577690,0.01,59798.0,59792.0,0.08386095]
[1723739577691,0.083609,59793.0,59792.0,0.08386095]
[1723739577888,0.083615,59790.0,59785.0,0.04980151]
[1723739578088,0.083615,59790.0,59782.0,0.04980151]
[1723739578089,0.083623,59783.0,59782.0,0.04980151]
[1723739578392,0.083623,59783.0,59779.0,0.04980151]
[1723739578588,0.083623,59783.0,59782.0,0.083625]
[1723739578885,0.083618,59787.0,59785.0,0.08362]
[1723739579089,0.083619,59786.0,59785.0,0.08362]
[1723739580886,0.083623,59784.0,59781.0,0.04980151]
[1723739581087,0.083623,59784.0,59783.0,0.083623]
[1723739581390,0.083625,59782.0,59781.0,0.05526093]
[1723739581583,0.083625,59782.0,59781.0,0.00545942]
[1723739581780,0.083625,59782.0,59777.0,0.41085246]
[1723739582476,0.083625,59782.0,59781.0,0.005]
[1723739583292,0.3608,59784.0,59783.0,0.003]
[1723739583487,0.444422,59784.0,59783.0,0.003]
[1723739584385,0.444422,59784.0,59782.0,0.083625]
[1723739584894,0.083623,59783.0,59782.0,0.083625]
[1723739586381,0.3608,59784.0,59783.0,0.083623]
[1723739586680,0.083619,59787.0,59785.0,0.08362]
[1723739587091,0.083619,59786.0,59785.0,0.08362]
[1723739587886,0.00025095,59788.0,59787.0,0.083618]
[1723739589294,0.08386695,59788.0,59787.0,0.083618]
[1723739589791,0.08386695,59788.0,59787.0,0.087618]
[1723739590192,0.08386695,59788.0,59787.0,0.091618]
[1723739590494,0.67924295,59788.0,59787.0,0.008]
[1723739590679,0.08363,59778.0,59777.0,0.36105095]
[1723739590887,0.18726,59778.0,59777.0,0.00025095]
[1723739592484,0.10363,59778.0,59777.0,0.00025095]
[1723739592682,0.08363,59778.0,59777.0,0.00025095]
[1723739593593,0.01,59778.0,59769.0,0.00556813]
[1723739593793,0.01,59778.0,59746.0,0.08222668]
[1723739593794,0.083671,59749.0,59736.0,0.04180151]
[1723739593983,0.3608,59747.0,59741.0,0.00553731]
[1723739594182,0.083684,59740.0,59739.0,0.0487]
[1723739594582,0.444484,59740.0,59739.0,0.0487]
[1723739594783,0.3608,59740.0,59739.0,0.0487]
[1723739596093,0.444484,59740.0,59739.0,0.0537]
[1723739596596,0.444484,59740.0,59739.0,0.0577]
[1723739598982,0.444484,59740.0,59739.0,0.009]
[1723739600299,0.528168,59740.0,59739.0,0.009]
[1723739600499,0.611852,59740.0,59739.0,0.009]
[1723739601303,0.611852,59740.0,59713.0,0.3201]
[1723739601304,0.0837,59729.0,59713.0,0.3201]
[1723739601485,0.3608,59720.0,59714.0,0.12992]
[1723739601686,0.083719,59716.0,59714.0,0.12992]
[1723739601886,0.3608,59720.0,59713.0,0.0055445]
[1723739601887,0.08372,59714.0,59713.0,0.0055445]
[1723739602201,0.08372,59714.0,59709.0,0.0462]
[1723739602785,0.083724,59712.0,59710.0,0.083726]
[1723739603004,0.444512,59720.0,59710.0,0.083726]
[1723739603193,0.444512,59720.0,59713.0,0.014]
[1723739603194,0.083714,59718.0,59713.0,0.014]
[1723739603496,0.08372,59714.0,59713.0,0.014]
[1723739603799,0.08372,59714.0,59713.0,0.006]
[1723739605591,0.08372,59714.0,59713.0,0.02]
[1723739605793,0.08319,59714.0,59713.0,0.02]
[1723739605991,0.3608,59715.0,59713.0,0.02]
[1723739606187,0.3608,59715.0,59714.0,0.08372]
[1723739606391,0.3608,59720.0,59714.0,0.3608]
[1723739606698,0.3608,59726.0,59714.0,0.3608]
[1723739606699,0.3608,59734.0,59722.0,0.083709]
[1723739606889,0.3608,59734.0,59724.0,0.217]
[1723739607089,0.083696,59731.0,59727.0,0.083701]
[1723739607290,0.3608,59728.0,59723.0,0.1004]
[1723739607694,0.31893115,59728.0,59723.0,0.1004]
[1723739607893,0.31893115,59728.0,59727.0,0.083702]
[1723739608392,0.3608,59734.0,59727.0,0.90228]
[1723739608393,0.00025117,59731.0,59727.0,0.90228]
[1723739608599,0.00025117,59731.0,59730.0,0.083698]
[1723739609195,0.08394717,59731.0,59730.0,0.083698]
[1723739609505,0.08594717,59731.0,59730.0,0.083698]
[1723739609703,0.00225117,59731.0,59730.0,0.083698]
[1723739610197,0.00025117,59731.0,59730.0,0.085698]
[1723739610503,0.00025117,59731.0,59730.0,0.088698]
[1723739611392,0.08394717,59731.0,59730.0,0.005]
[1723739612191,0.18764317,59731.0,59730.0,0.005]
[1723739612503,0.18764317,59731.0,59720.0,0.00025117]
[1723739612504,0.08371,59721.0,59720.0,0.08396217]
[1723739612702,0.44451,59721.0,59720.0,0.08396217]
[1723739613204,0.44451,59721.0,59720.0,0.00025117]
[1723739613400,0.45451,59721.0,59720.0,0.00025117]
[1723739613700,0.44451,59721.0,59720.0,0.00025117]
[1723739613907,0.44451,59721.0,59720.0,0.00525117]
[1723739614306,0.52822,59721.0,59720.0,0.00825117]
[1723739614795,1.13429,59721.0,59720.0,0.008]
[1723739614998,1.13429,59721.0,59707.0,0.08373]
[1723739614999,1.24396,59721.0,59707.0,0.08373]
[1723739615198,0.083734,59704.0,59703.0,0.083735]
[1723739616501,0.083734,59704.0,59703.0,0.097735]
[1723739616996,0.084734,59704.0,59703.0,0.028]
[1723739617303,0.084734,59704.0,59703.0,0.111736]
[1723739617499,0.001,59704.0,59703.0,0.111736]
[1723739618701,0.001,59704.0,59703.0,1.014216]
[1723739618903,0.00025117,59709.0,59708.0,0.083729]
[1723739619106,0.3608,59712.0,59711.0,0.083724]
[1723739620205,0.3608,59712.0,59711.0,0.586124]
[1723739620505,0.3608,59712.0,59711.0,0.083724]
[1723739620707,0.3618,59712.0,59711.0,0.083724]
[1723739621208,0.445523,59712.0,59711.0,0.083724]
[1723739621403,0.3618,59712.0,59711.0,0.083724]
[1723739622502,0.3628,59712.0,59711.0,0.094724]
[1723739622898,0.30417095,59712.0,59711.0,0.094724]
[1723739623510,0.30417095,59712.0,59711.0,0.22228389]
[1723739624215,0.3608,59729.0,59711.0,0.89936009]
[1723739624413,0.3608,59729.0,59728.0,0.0837]
[1723739624608,0.3608,59736.0,59735.0,0.083691]
[1723739624808,0.3608,59736.0,59722.0,0.3608]
[1723739624809,0.083694,59733.0,59729.0,0.06647804]
[1723739625007,0.083694,59733.0,59732.0,0.083695]
[1723739625517,0.083698,59730.0,59729.0,0.06647804]
[1723739625709,0.083699,59729.0,59728.0,0.06647804]
[1723739626018,0.0837,59728.0,59727.0,0.00025117]
[1723739626212,0.66968,59728.0,59727.0,0.00025117]
[1723739626414,1.07968,59728.0,59727.0,0.00025117]
[1723739626606,1.12878,59728.0,59727.0,0.00025117]
[1723739626913,0.167424,59720.0,59719.0,0.06647804]
[1723739627115,0.083716,59717.0,59716.0,0.06647804]
[1723739627502,0.083717,59716.0,59715.0,0.15019604]
[1723739627707,0.083717,59716.0,59715.0,0.083718]
[1723739628116,0.169702,59727.0,59722.0,0.083708]
[1723739628308,0.083708,59723.0,59722.0,0.083708]
[1723739629012,0.08371,59721.0,59720.0,0.15028646]
[1723739629222,0.444506,59724.0,59723.0,0.083707]
[1723739630006,0.444506,59724.0,59723.0,0.15029998]
[1723739630413,0.444506,59724.0,59723.0,0.083707]
[1723739630414,0.3608,59724.0,59723.0,0.083707]
[1723739630606,0.08395217,59728.0,59727.0,0.083702]
[1723739630808,0.08395217,59728.0,59727.0,0.15033424]
[1723739631010,0.08395217,59728.0,59727.0,0.083702]
[1723739631209,0.08395217,59728.0,59727.0,0.15033424]
[1723739631406,0.08395217,59728.0,59727.0,0.083702]
[1723739631715,0.08395217,59728.0,59725.0,0.083705]
[1723739631716,0.083705,59726.0,59725.0,0.083705]
[1723739631918,0.444505,59726.0,59725.0,0.083705]
[1723739632307,0.083706,59724.0,59723.0,0.06663224]
[1723739632509,0.083706,59724.0,59723.0,0.083707]
[1723739632711,0.083709,59722.0,59721.0,0.06663224]
[1723739632908,0.083709,59722.0,59720.0,0.06663224]
[1723739633116,0.083709,59722.0,59721.0,0.08371]
[1723739633811,0.084709,59722.0,59721.0,0.08371]
[1723739634408,0.084709,59722.0,59721.0,0.15035003]
[1723739635424,0.084709,59722.0,59721.0,0.08371]
[1723739635622,0.001,59722.0,59721.0,0.15035003]
[1723739635916,0.001,59726.0,59725.0,0.083705]
[1723739636220,0.08395217,59728.0,59727.0,0.083702]
[1723739636617,0.00025117,59728.0,59727.0,0.083702]
[1723739636826,0.444487,59738.0,59727.0,0.3608]
[1723739637119,0.444487,59738.0,59737.0,0.083688]
[1723739637322,0.444487,59738.0,59728.0,0.1311]
[1723739637323,0.083692,59735.0,59730.0,0.06661727]
[1723739637523,0.3608,59738.0,59728.0,0.0474]
[1723739637524,0.3608,59733.0,59728.0,0.0474]
[1723739637715,0.083692,59734.0,59733.0,0.083693]
[1723739639122,0.083687,59738.0,59737.0,0.083686]
[1723739639320,0.444487,59738.0,59737.0,0.083686]
[1723739639518,0.084693,59734.0,59733.0,0.083693]
[1723739640125,0.001,59734.0,59733.0,0.083693]
[1723739640317,0.083688,59737.0,59736.0,0.083688]
[1723739640510,0.001,59738.0,59737.0,0.083688]
[1723739640717,0.618172,59749.0,59737.0,0.083688]
[1723739640718,0.36184001,59749.0,59742.0,0.08368]
[1723739640915,0.36184001,59749.0,59748.0,0.083672]
[1723739641116,0.3608,59749.0,59748.0,0.083672]
[1723739641517,0.083678,59744.0,59743.0,0.20049527]
[1723739641821,0.083679,59743.0,59740.0,0.06661727]
[1723739642020,0.3608,59744.0,59743.0,0.083679]
[1723739642426,0.3608,59744.0,59738.0,0.06686844]